Cogmind - Beta 16 @@@ ROGUE MODE // 2025.11.15 @ 20:16:10 Player: Red Box Result: Destroyed by 8R-AWN with 8R-AWN's Boregun Performance ------------- Evolutions (0) 0 Regions Visited (3) 600 Robots Destroyed (27) 135 Value Destroyed (574) 574 Prototype IDs (28) 560 Alien Tech Used (0) 0 Bonus (360) 360 TOTAL SCORE: 2229 Bonus ------- Follower Combat Kills 60 Aligned with FarCom 300 Cogmind --------- Core Integrity 0/250 Matter 295/300 Energy 100/100 System Corruption 0% Temperature Cool (0) Movement Treading (240) Ox1 Location -10/Exiles Parts ------- > --- POWER (1) -------- (None) > --- PROPULSION (2) --- Light Treads > --- UTILITY (2) ------ Large Storage Unit > --- WEAPON (2) ------- Katana > --- INVENTORY (15) --- Compact Wheel Compact Battery (200) Improved Trap Extractor (4/6 Dirty Bomb) Particle Gun Particle Gun Light Cannon Flak Cannon Rocket Launcher Peak State ------------ > --- POWER ------------ Ion Engine > --- PROPULSION ------- Aluminum Leg Aluminum Leg > --- UTILITY ---------- Large Storage Unit Improved Trap Extractor > --- WEAPON ----------- Particle Gun Particle Gun > --- INVENTORY -------- Light Treads Light Treads Compact Wheel Cryofiber Web Improved Heat Sink Compact Battery Light Armor Plating Hardened Medium Armor Plating Insulated Plating Hacking Suite Light Cannon Light Cannon Flak Cannon Grenade Launcher Katana [Rating: 15] Favorites ----------- Power Ion Engine Engine Ion Engine Propulsion Aluminum Leg Treads Light Treads Leg Aluminum Leg Utility Large Storage Unit Device Improved Heat Sink Storage Large Storage Unit Protection Hardened Medium Armor Plating Weapon Particle Gun Energy Gun Particle Gun Ballistic Cannon Light Cannon Launcher Rocket Launcher Slashing Weapon Katana Special Melee Weapon Datajack Build | -11 -10 -10 -10 ------- Run | Yrd Mat Min Exi Slots Evolved . | . . . . Power . | . . . . Propulsion . | . . . . Utility . | . . . . Weapon . | . . . . Parts Attached 30 | 7 12 4 7 Power 3 | 1 2 . . Engine 3 | 1 2 . . Core . | . . . . Reactor . | . . . . Propulsion 10 | 2 6 . 2 Treads 2 | . . . 2 Leg 8 | 2 6 . . Wheel . | . . . . Hover . | . . . . Flight . | . . . . Utility 8 | 2 2 2 2 Device 3 | 1 1 1 . Storage 3 | 1 1 1 . Processor . | . . . . Hackware . | . . . . Protection 2 | . . . 2 Artifact . | . . . . Weapon 9 | 2 2 2 3 Energy Gun 4 | 2 1 1 . Energy Cannon . | . . . . Ballistic Gun . | . . . . Ballistic Cannon 1 | . . . 1 Launcher 2 | . . 1 1 Special Weapon . | . . . . Impact Weapon . | . . . . Slashing Weapon 1 | . . . 1 Piercing Weapon . | . . . . Special Melee Weapon 1 | . 1 . . Unidentified Prototypes . | . . . . Parts Lost 10 | . 3 . 7 Power 3 | . 2 . 1 Propulsion 3 | . . . 3 Utility 3 | . 1 . 2 Weapon 1 | . . . 1 Highest Loss Streak 7 | . 2 . 7 To Critical Strikes 3 | . . . 3 Average Backups 12 | 4 9 14 13 Power . | . . . . Propulsion 3 | 3 3 3 2 Utility 4 | . 2 6 4 Weapon 4 | . 3 4 5 Tool/Special . | . . . . Unused Backups 19 | . 2 2 15 Power 3 | . . . 3 Propulsion 2 | . 1 . 1 Utility 10 | . . 1 9 Weapon 4 | . 1 1 2 Tool/Special . | . . . . Average Slot Usage (%) 98 | . 96 100 99 Engine 13 | . 11 14 13 Leg 27 | . 28 28 27 Device 11 | . 10 14 11 Storage 14 | . 16 14 14 Protection 1 | . . . 2 Energy Gun 25 | . 27 27 22 Slashing Weapon 1 | . . . 2 Peak Build Rating 15 | 9 11 15 15 Average Rating 12 | 6 9 13 13 On Entrance 8 | . 9 11 14 Avg Prop Armor Cover (%) . | . . . . Naked Turns . | . . . . Heaviest Build 39 | 12 21 34 39 Greatest Support 20 | 20 20 20 20 Greatest Overweight (x) 1 | 1 1 1 1 Average Overweight (x) . | . . . 1 Largest Inventory Capacity 15 | 8 10 15 15 Average Capacity 13 | 7 9 14 15 Most Carried 15 | 5 10 15 15 Average Carried 12 | 4 9 14 13 Final Capacity 15 | 8 10 15 15 Final Carried 15 | 5 10 15 8 Class Distribution -------------------- 87% | Mutant 10% | Trapper-Mutant Dominant Class ---------------- Mutant | -10/Materials Mutant | -10/Mines Mutant | -10/Exiles Resources | -11 -10 -10 -10 ----------- Run | Yrd Mat Min Exi Matter Collected 634 | 270 140 160 64 Remotely . | . . . . Salvage Created 775 | 147 495 133 . Parts 52 | 13 30 9 . Haulers Intercepted 1 | . 1 . . Recyclers Shooed 1 | . 1 . . Parts Field Recycled . | . . . . Retrieved Matter . | . . . . Parts Self-Destructed . | . . . . Prevented . | . . . . Parts Restored . | . . . . Kills | -11 -10 -10 -10 ------- Run | Yrd Mat Min Exi Combat Hostiles Destroyed 17 | . 12 5 . Guns 13 | . 12 1 . AOE 4 | . . 4 . Classes Destroyed 6 | 2 4 . . Tunneler 5 | 5 . . . Hauler 1 | . 1 . . Recycler 2 | 1 . 1 . Watcher 2 | . 2 . . Swarmer 6 | . 3 3 . Grunt 11 | . 9 2 . Best Kill Streak 5 | 4 5 3 . Combat Bots Only 5 | . 5 3 . Max Kills in Single Turn 2 | 1 1 2 . Gunslinging . | . . . . Exploded 2 | . . 2 . Melee . | . . . . Uniques/NPCs Destroyed . | . . . . Combat | -11 -10 -10 -10 -------- Run | Yrd Mat Min Exi Hostile Shots Fired 158 | . 68 14 76 Missed 38 | . 18 8 12 Hits 120 | . 50 6 64 Projectile 120 | . 50 6 64 Critical Strikes 33 | . 1 . 32 Damage Taken 1778 | . 575 60 1143 Core 265 | . 51 21 193 Absorbed by Shields . | . . . . Regen/Repaired (Parts) 26 | . 26 . . Core Remaining (%) 100 | 100 . . . Volleys Fired 68 | 10 48 9 1 Largest 2 | 2 2 2 1 Hottest 115 | 90 115 115 30 Shots Fired 133 | 20 94 18 1 Gun 128 | 20 94 14 . Cannon 1 | . . . 1 Launcher 4 | . . 4 . Special . | . . . . Kinetic 1 | . . . 1 Thermal 128 | 20 94 14 . Explosive 4 | . . 4 . Electromagnetic . | . . . . Robot Hit Streak 9 | 4 9 6 . Robot Miss Streak 3 | 2 3 1 . Penetration Max . | . . . . Secondary Targets 5 | . 5 . . Max Gunslinging Chain 1 | . 1 . . Shots Hit Robots 111 | 12 57 9 33 Core Hits 44 | 7 24 9 4 Critical Kills . | . . . . Critical Parts Destroyed . | . . . . Critical Strikes 8 | 1 3 2 2 Burn 6 | 1 3 2 . Sever 2 | . . . 2 Melee Attacks 40 | . . . 40 Impact . | . . . . Slashing 40 | . . . 40 Piercing . | . . . . Sneak Attacks . | . . . . Combat Hostiles . | . . . . Follow-up Attacks . | . . . . Damage Inflicted 2382 | 142 786 419 1035 Guns 1053 | 142 786 125 . Cannons . | . . . . Explosions 294 | . . 294 . Melee 1035 | . . . 1035 Ramming . | . . . . Kinetic . | . . . . Thermal 1053 | 142 786 125 . Explosive 294 | . . 294 . Electromagnetic . | . . . . Impact . | . . . . Slashing 1035 | . . . 1035 Piercing . | . . . . Highest Corruption . | . . . . Average Corruption . | . . . . Corruption Purged . | . . . . Corruption Blocked . | . . . . Overload Shots . | . . . . Overflow Damage 3 | . . 3 . Projectiles . | . . . . Explosions 3 | . . 3 . Melee . | . . . . Knockbacks . | . . . . Impact . | . . . . Kinetic . | . . . . Secondary . | . . . . Self-Inflicted Damage . | . . . . Shots . | . . . . Rammed . | . . . . Targets Rammed . | . . . . Kicked . | . . . . Crushed . | . . . . Highest Temperature 299 | 90 299 36 . Average Temperature 62 | 32 76 15 . Received Heat Transfer 315 | . 294 21 . Siege Activations . | . . . . Martial Activations . | . . . . Shielding Activations . | . . . . Robots Disrupted . | . . . . Combat Hostiles . | . . . . Robots Corrupted . | . . . . Combat Hostiles . | . . . . Parts Fried . | . . . . Impact Corruptions . | . . . . Robots Melted . | . . . . Combat Hostiles . | . . . . Parts Melted 6 | 1 5 . . Heat Transferred 3175 | 458 2236 481 . Parts Sabotaged . | . . . . Parts Stolen . | . . . . Parts Stripped . | . . . . Power Chain Reactions . | . . . . Alert | -11 -10 -10 -10 ------- Run | Yrd Mat Min Exi Maximum Alert Level . | . . . . Low Security (%) 100 | 100 100 100 . Level 1 . | . . . . Level 2 . | . . . . Level 3 . | . . . . Level 4 . | . . . . Level 5 . | . . . . High Security . | . . . . Max Security . | . . . . Peak Influence 157 | 10 151 157 . Initial 16 | . . 16 . Average 35 | 2 46 25 . Influence Increases 684 | 30 435 219 . Destroy 0b10 Robot/C 380 | . 240 140 . Destroy 0b10 Robot/NC 50 | 30 15 5 . Destroy Leader 96 | . 66 30 . Allied During Kill 3 | . . 3 . Successful Hack 39 | . 39 . . Select Force Hacks 60 | . 60 . . Disable Machine 30 | . . 30 . Destroy Structure 11 | . . 11 . Lose Combat Pursuer 15 | . 15 . . Influence Decreases 684 | 30 393 261 . Entered New Map 26 | . . 26 . Time Decay 648 | 30 383 235 . Lost Part 10 | . 10 . . Squads Dispatched 3 | . 3 . . Investigation 3 | . 3 . . Extermination . | . . . . Reinforcement . | . . . . Assault . | . . . . Garrison . | . . . . Intercept . | . . . . Searches Triggered . | . . . . Construction Impeded . | . . . . Haulers Reinforced . | . . . . Active Scanning Responses . | . . . . Cargo Convoy Interrupts . | . . . . Stealth | -11 -10 -10 -10 --------- Run | Yrd Mat Min Exi Distress Signals 1 | . 1 . . Communications Jammed . | . . . . Distress Signals . | . . . . Times Spotted 23 | . 14 7 2 Peak Tracking Total 5 | . 4 3 5 Tactical Retreats 1 | . 1 . . Traps | -11 -10 -10 -10 ------- Run | Yrd Mat Min Exi Traps Triggered . | . . . . Indirectly . | . . . . Trap Hack Attempts 1 | . 1 . . Triggered 1 | . 1 . . Disarmed . | . . . . Reprogrammed . | . . . . Reused 2 | . . . 2 Traps Extracted 6 | . . 6 . Installed 2 | . . . 2 Triggered . | . . . . Most Traps Carried 6 | . . 6 6 Machines | -11 -10 -10 -10 ---------- Run | Yrd Mat Min Exi Machines Disabled 3 | . . 2 1 Max in Single Turn 2 | . . 2 1 Machines Repaired . | . . . . Machines Dismantled . | . . . . Machines Sabotaged . | . . . . Overloaded Fab Kills . | . . . . Hacking | -11 -10 -10 -10 --------- Run | Yrd Mat Min Exi Machines Accessed 12 | . 9 1 2 Terminals 6 | . 6 . . Fabricators . | . . . . Repair Stations 1 | . 1 . . Recycling Units 2 | . 2 . . Scanalyzers . | . . . . Garrison Access . | . . . . Total Hacks 35 | . 29 1 5 Successful 24 | . 18 1 5 Failed 11 | . 11 . . Catastrophic . | . . . . Database Lockouts . | . . . . Manual 16 | . 15 . 1 Terminals 21 | . 21 . . Fabricators . | . . . . Repair Stations 3 | . 3 . . Recycling Units 5 | . 5 . . Scanalyzers . | . . . . Garrison Access . | . . . . Terminal Hacks 14 | . 8 1 5 Record 4 | . . . 4 Robot Analysis 4 | . 4 . . Prototype ID Bank 3 | . 3 . . Open Door 1 | . . 1 . Terminal Index 1 | . 1 . . Proto ID Catalog 1 | . . . 1 Fabricator Hacks . | . . . . Repair Station Hacks 2 | . 2 . . Scan Component 1 | . 1 . . Repair 1 | . 1 . . Recycling Unit Hacks . | . . . . Scanalyzer . | . . . . Garrison Access Hacks . | . . . . Unauthorized Hacks 8 | . 8 . . Terminals 6 | . 6 . . Assimilate 3 | . 3 . . Botnet 2 | . 2 . . Operators 1 | . 1 . . Fabricators . | . . . . Repair Stations . | . . . . Recycling Units 2 | . 2 . . Tunnel 2 | . 2 . . Scanalyzers . | . . . . Garrison Access . | . . . . Data Cores Recovered . | . . . . Used . | . . . . Hacking Detections 9 | . 9 . . Full Trace Events . | . . . . Feedback Events . | . . . . Feedback Blocked . | . . . . Robot Schematics Acquired . | . . . . Robots Built . | . . . . Authchips . | . . . . Time . | . . . . Total Robot Build Rating . | . . . . Part Schematics Acquired . | . . . . Parts Built . | . . . . Authchips . | . . . . Time . | . . . . Total Part Build Rating . | . . . . Part Studies Acquired . | . . . . Parts Repaired 1 | . 1 . . Time 38 | . 38 . . Parts Recycled . | . . . . Recycled Matter . | . . . . Retrieved Matter . | . . . . Retrieved Components . | . . . . Parts Scanalyzed . | . . . . Part Schematics Acquired . | . . . . Parts Damaged . | . . . . Bothacking | -11 -10 -10 -10 ------------ Run | Yrd Mat Min Exi Used RIF Installer . | . . . . Robots Hacked . | . . . . Non-combat . | . . . . Combat . | . . . . Robot Hacks Applied . | . . . . Relay Couplers Released . | . . . . Fabnet Peak Effective % . | . . . . Robots Rewired . | . . . . Allies Hacked . | . . . . Hacks Repelled . | . . . . Allies | -11 -10 -10 -10 -------- Run | Yrd Mat Min Exi Total Allies 2 | . 1 1 . Largest Group 2 | . 1 2 1 Highest-Rated Group 41 | . 10 41 10 Highest-Rated Ally 31 | . 10 31 10 Total Orders 10 | . 2 7 1 STAY 6 | . 1 4 1 FOLLOW 4 | . 1 3 . Ally Attacks 15 | . . 15 . Total Damage 228 | . . 228 . Kills 2 | . . 2 . Allies Corrupted . | . . . . Allies Melted . | . . . . Intel | -11 -10 -10 -10 ------- Run | Yrd Mat Min Exi Active Infowar (turns) 295 | 85 210 . . Terrain 295 | 85 210 . . Robot Analysis Total 4 | . 4 . . Derelict Logs Recovered 1 | . . 1 . Drone Launches . | . . . . Drone Recoveries . | . . . . Exploration | -11 -10 -10 -10 ------------- Run | Yrd Mat Min Exi Turns Passed 5837 | 131 1879 1507 2320 Spaces Moved 2900 | 71 953 744 1132 Core 11 | 11 . . . Treads . | . . . . Legs 2889 | 60 953 744 1132 Wheels . | . . . . Hover . | . . . . Flight . | . . . . Fastest Speed 50 | 50 120 120 190 Average Speed 178 | 121 158 189 190 Slowest Speed 190 | 190 190 190 190 Overloaded Moves . | . . . . Propulsion Burnouts . | . . . . Robots Hopped . | . . . . Potential Cave-ins . | . . . . Cave-ins Triggered . | . . . . Exploration Rate (%) 70 | 5 99 100 79 Regions Visited 3 Branch Regions 2 Pre-discovered Areas 4 | . 2 1 1 Known Exits Taken . | . . . . Unknown Exits Taken 3 | 1 1 1 . Scrap Searched 1 | . . 1 . Spaces Dug . | . . . . Terrain Destroyed 11 | . . 11 . Melee . | . . . . Projectile . | . . . . AOE 11 | . . 11 . Terrain Rammed . | . . . . Walls Destroyed . | . . . . Machines Disabled . | . . . . Actions | -11 -10 -10 -10 --------- Run | Yrd Mat Min Exi Total 3385 | 92 1228 821 1244 Wait 277 | . 194 43 40 Move 2897 | 70 952 743 1132 Hop . | . . . . Pick Up 30 | 5 8 9 8 Fast Attach 15 | 7 5 3 . Attach 3 | . . . 3 Detach . | . . . . Swap 21 | . 9 6 6 Drop 31 | . 11 8 12 Fire 68 | 10 48 9 1 Melee 40 | . . . 40 Ram . | . . . . Kick . | . . . . Crush . | . . . . Escape Stasis . | . . . . Rewire . | . . . . Trap 3 | . 1 . 2 Miscellaneous . | . . . . Route ------- -11/Scrapyard -10/Materials (discovered 5 exits: [*Mat x3] / *Min / [*Sub]) -10/Mines (discovered 4 exits: [*Mat x2] / *Exi / [*Sub]) -10/Exiles (discovered 2 exits: [*Min x2]) History --------- Turn | Location | Event 8 | -11/Scrapyard | Discovered new exit (range 14) 132 | -11/Scrapyard | Entered Materials 304 | -10/Materials | Build established: Mutant 759 | -10/Materials | Discovered new exit (range 15) 1271 | -10/Materials | Discovered new exit (range 4) 1298 | -10/Materials | Discovered new exit (range 13) 1419 | -10/Materials | Discovered new exit (range 9) 1614 | -10/Materials | Discovered new exit (range 10) 1961 | -10/Materials | Repaired Imp. Heat Sink 2011 | -10/Materials | Entered Mines 2011 | -10/Mines | Accompanied by 1 ally 2119 | -10/Mines | Met a Derelict who couldn't figure out how to use a Trap Extractor 2322 | -10/Mines | Discovered new exit (range 9) 2485 | -10/Mines | Discovered new exit (range 7) 2656 | -10/Mines | Received a Rocket Launcher from a helpful Derelict 2696 | -10/Mines | Discovered new exit (range 7) 3045 | -10/Mines | Received a Mining Laser from a helpful Derelict 3124 | -10/Mines | Deemed a non-threat by the Exiles lab entrance 3124 | -10/Mines | Discovered new exit (range 5) 3518 | -10/Mines | Entered Exiles 3518 | -10/Exiles | Accompanied by 1 ally 3553 | -10/Exiles | Discovered new exit (range 14) 3577 | -10/Exiles | Met 8R-AWN 3610 | -10/Exiles | Met EX-HEX 3680 | -10/Exiles | Met EX-DEC 3693 | -10/Exiles | Learned location of Zion (-6) 3768 | -10/Exiles | Visited The Gauntlet 4035 | -10/Exiles | Discovered new exit (range 10) 4573 | -10/Exiles | Met EX-BIN 4599 | -10/Exiles | Aligned with FarCom system 4601 | -10/Exiles | Given EX-Vault access code 4647 | -10/Exiles | Opened EX-Vault 4660 | -10/Exiles | Found Supersonic Drone Bay 4699 | -10/Exiles | Warned to stay clear of 0b10 Research branches 4941 | -10/Exiles | Warned about trapping Exiles lab 5303 | -10/Exiles | Build established: Trapper-Mutant 5632 | -10/Exiles | Attacked by the Exiles 5774 | -10/Exiles | Core integrity fell below 50% 5826 | -10/Exiles | Core integrity fell below 20% 5838 | -10/Exiles | Destroyed by 8R-AWN with 8R-AWN's Boregun Last Messages --------------- 05799_ 8R-AWN Prototype Leg severed. 05800_ Penetrated by HV Slug. 05800_ HV Slug penetrates Wall. 05804_ Penetrated by HV Slug. 05804_ HV Slug penetrates Wall. 05809_ Penetrated by HV Slug. 05817_ Critical hit (Destroy). 05817_ Penetrated by HV Slug. 05817_ Lgt. Cannon destroyed. 05821_ Penetrated by HV Slug. 05821_ HV Slug penetrates Wall. 05825_ Penetrated by HV Slug. 05830_ HV Slug penetrates Wall. 05830_ Penetrated by HV Slug. 05830_ Critical hit (Destroy). 05830_ Lgt. Treads destroyed. 05834_ Penetrated by HV Slug. 05838_ Critical hit (Destroy). 05838_ Lgt. Armor Plating destroyed. 05838_ Penetrated by HV Slug. Map ----- +----------------------------------------------------+ | ?????????????????????????????????????????????????? | | ?????????????????????????????????????????????????? | | ?????????????????????????????????????????????????? | | ?????????????????????????????????????????????????? | | ?????????????????????????????????????????????????? | | ?????????????????????????????????????????????????? | | ?????????????????????????????????????????????????? | | ?????????????????????????????????????????????????? | | ?????????????????????????????????????????????????? | | ?????????#####???????????????????????????????????? | | ????????## ##??????????????????????????????????? | | ????????# #??????????????????????????????????? | | ????????# < #??????????????????????????????????? | | ????????# !! ###????????????????????????????????? | | ????????# ! #????????????????????????????????? | | ????????# ##????????????????????????????????? | | ????????## #?????????????????????????????????? | | ?????????# ##????????????????????????????????? | | ?????????## #????????????#######?????????????? | | ??????????# #######??????#!!! "#?????????????? | | ??????????# #""##?????# "#?????????????? | | ??????????## #?????# "#?????????????? | | ???????????##" ##???## ""#??????????#### | | ???????????#"" #####" ""#??????????# | | ???????????#### g=##" ""#??????????#"" | | ??????????????## @ #" ###??????????#"" | | ???????????????#"## ###??????????#"" | | ???????????????####### ;;#??????????#"" | | ?????????????????????### ;#??????????# | | ???????????????######## ;##?????????#"" | | ???????????????# !!"""" "#???????### | | ???????????????#! "#;; ;#####???### | | ???????????????#! !! ##;; #####X# | | ???????????????#! ! !!##?#; | | ???????????????#!!" "" #;#???# # | | ???????????????########;# #???#### | | ??????????????????????### #??????### * | | ????????????????????????# #????????### | | ????????????????????????# #??????????## | | ????????????????????????? ????????????## | | ????????????????????????? ?????????????##" | | ????????????????????????? ??????????????#""" | | ????????????????????????? ?????????????##" | | ????????????????????????? ?????????????#"" | | ??????????????????????????????????????##""" | | ??????????????????????????????????????#""" | | ??????????????????????????????????????#""" | | ??????????????????????????????????????#"" | | ??????????????????????????????????????#""" | | ??????????????????????????????????????#"" | +----------------------------------------------------+ Best States ------------- Heat Dissipation 39 Energy Generation 10 Energy Capacity 250 Matter Stores 300 Matter Capacity 300 Sight Range 16 Terrain Scan Range 16 Terrain Scan Density 10 Armor Coverage 225 Evasion (%) 55 Recoil Reduction 2 Trap Extractor Capacity 6 Item Schematics ----------------- None Robot Schematics ------------------ None Fabricated ------------ Nothing Repaired ---------- Imp. Heat Sink | 35% | -10/Materials Studied --------- None Alien Tech Used ----------------- None Achievements -------------- None Challenges ------------ None Game ------ Seed ArcMultitargetingDrive Manual? 0 Play Time 00:30:12 Cumulative 690.4 hours Start 2025.11.15 @ 01:37:35 End 2025.11.15 @ 20:16:10 Sessions 3 Manual Loads 0 Difficulty Rogue Special Mode None Game No. 486 Rogue 486 Adventurer 0 Explorer 0 Win Type - Total 1 Types 1/0/0/0/0/0/0/0/0/0 Lore% 65 Gallery% 67 Achievement% 43 Wizard Run 0 Options --------- Layout 1 ASCII 0 Keyboard 0 Movement Mouse Keybinds 0 Fullscreen 1 Font 20/SmallcapsGlow Map View 54x42 Zoom Use 0% Tactical HUD 1 Map Filters NONE Filters NONE Steam 1 RUN: 4ddc9b6a-de16-478b-a78b-6664388a21a2